Workbook

Sheet Sheet1
A1: CAPITAL RESERVE STUDY SUPPORT SPREADSHEET (IF NUMBER OF COLIMNS IN PREDICTOR ARE INSUFFICIENT, ENTER IN PREDICTOR COLUMNS TOTAL COSTS OF PROJECTS SUBJECT TO SAME INFLATION.
M2: PREDICTOR | R2: PREDICTOR | T2: PREDICTOR | V2: PREDICTOR | X2: TOTAL MATCHES
D3: Copyright 2018 Azalea Systems Inc. | M3: COLUMN 1 | R3: COLUMN 2 | T3: COLUMN 3 | V3: COLUMN 4 | X3: PREDICTOR
A4: Enter Assets: | D4: Sidings | E4: Chimneys | F4: Clubhouse Carpet | G4: Sidewalks | H4: Mail Kiosks | I4: Clubhouse Furniture | J4: Pool Pumps | K4: Pool Deck | L4: Septic System | M4: TOTAL | O4: Roads | P4: Roofs | Q4: Driveways | R4: TOTAL | T4: Porches | V4: Fences
A5: Enter Inflation Factor: | D5: 0.03 | E5: 0.03 | F5: 0.03 | G5: 0.03 | H5: 0.03 | I5: 0.03 | J5: 0.03 | K5: 0.03 | L5: 0.03 | M5: 0.03 | O5: 0.04 | P5: 0.04 | Q5: 0.04 | R5: 0.04 | T5: 0.05 | V5: 0.01 | X5: =M6+R6+T6+V6 -> 1582200
A6: Totals: | D6: =SUM(D8:D27) -> 430000 | E6: 25200 | F6: 19000 | G6: 45000 | H6: 20000 | I6: 100000 | J6: 25000 | K6: =SUM(K8:K27) -> 40000 | L6: =SUM(L8:L27) -> 125000 | M6: =SUM(M8:M27) -> 829200 | O6: =SUM(O8:O27) -> 340000 | P6: 60000 | Q6: 50000 | R6: 450000 | T6: 56000 | V6: 247000 | X6: 1582200
A7: 2018
A8: 2019 | D8: 12000 | E8: 3600 | F8: 2000 | I8: 5000 | L8: 10000 | M8: =SUM(D8:L8) -> 32600 | O8: 20000 | P8: 3000 | R8: =SUM(O8:Q8) -> 23000 | T8: 8000 | V8: 10000 | X8: =M8+R8+T8+V8 -> 73600
A9: 2020 | D9: 13000 | F9: 500 | I9: 5000 | L9: 5000 | M9: =SUM(D9:L9) -> 23500 | P9: 3000 | R9: =SUM(O9:Q9) -> 3000 | V9: 10000 | X9: 36500
A10: 2021 | D10: 14000 | F10: 500 | G10: 15000 | I10: 5000 | L10: 5000 | M10: 39500 | P10: 3000 | R10: 3000 | V10: 10000 | X10: 52500
A11: 2022 | D11: 15000 | E11: 3600 | F11: 500 | I11: 5000 | L11: 5000 | M11: 29100 | P11: 3000 | R11: 3000 | T11: 8000 | V11: 10000 | X11: 50100
A12: 2023 | D12: 16000 | F12: 500 | I12: 5000 | L12: 10000 | M12: 31500 | P12: 3000 | R12: 3000 | V12: 60000 | X12: 94500
A13: 2024 | D13: 17000 | F13: 2000 | I13: 5000 | L13: 5000 | M13: 29000 | P13: 3000 | R13: 3000 | V13: 60000 | X13: 92000
A14: 2025 | D14: 18000 | E14: 3600 | F14: 500 | I14: 5000 | L14: 5000 | M14: 32100 | O14: 20000 | P14: 3000 | R14: 23000 | T14: 8000 | V14: 60000 | X14: 123100
A15: 2026 | D15: 19000 | F15: 500 | I15: 5000 | J15: 25000 | L15: 5000 | M15: 54500 | P15: 3000 | R15: 3000 | X15: 57500
A16: 2027 | D16: 20000 | F16: 500 | G16: 15000 | H16: 5000 | I16: 5000 | L16: 10000 | M16: 55500 | P16: 3000 | R16: 3000 | X16: 58500
A17: 2028 | D17: 21000 | E17: 3600 | F17: 500 | I17: 5000 | K17: 40000 | L17: 5000 | M17: 75100 | P17: 3000 | R17: 3000 | T17: 8000 | V17: 3000 | X17: 89100
A18: 2029 | D18: 22000 | F18: 5000 | I18: 5000 | L18: 5000 | M18: 37000 | O18: 300000 | P18: 3000 | Q18: 50000 | R18: 353000 | X18: 390000
A19: 2030 | D19: 23000 | F19: 500 | I19: 5000 | L19: 5000 | M19: 33500 | P19: 3000 | R19: 3000 | X19: 36500
A20: 2031 | D20: 24000 | E20: 3600 | F20: 500 | I20: 5000 | L20: 10000 | M20: 43100 | P20: 3000 | R20: 3000 | T20: 8000 | V20: 3000 | X20: 57100
A21: 2032 | D21: 25000 | F21: 500 | I21: 5000 | L21: 5000 | M21: 35500 | P21: 3000 | R21: 3000 | V21: 3000 | X21: 41500
A22: 2033 | D22: 26000 | F22: 500 | G22: 15000 | H22: 5000 | I22: 5000 | L22: 5000 | M22: 56500 | P22: 3000 | R22: 3000 | V22: 3000 | X22: 62500
A23: 2034 | D23: 27000 | E23: 3600 | F23: 2000 | I23: 5000 | L23: 5000 | M23: 42600 | P23: 3000 | R23: 3000 | T23: 8000 | V23: 3000 | X23: 56600
A24: 2035 | D24: 28000 | F24: 500 | I24: 5000 | L24: 10000 | M24: 43500 | P24: 3000 | R24: 3000 | V24: 3000 | X24: 49500
A25: 2036 | D25: 29000 | F25: 500 | I25: 5000 | L25: 5000 | M25: 39500 | P25: 3000 | R25: 3000 | V25: 3000 | X25: 45500
A26: 2037 | D26: 30000 | E26: 3600 | F26: 500 | H26: 10000 | I26: 5000 | L26: 5000 | M26: 54100 | P26: 3000 | R26: 3000 | T26: 8000 | V26: 3000 | X26: 68100
A27: 2038 | D27: 31000 | F27: 500 | I27: 5000 | L27: 5000 | M27: 41500 | P27: 3000 | R27: 3000 | V27: 3000 | X27: 47500

Sheet Sheet2

Sheet Sheet3
